fUSD/lending_fUSD_20240122
["ID","MTS","AMOUNT","RATE_DAILY","PERIOD"]
[312515822,1705938653859,-500.0,0.00054794,120]
[312515823,1705938653868,-500.0,0.00054794,120]
[312515824,1705938653877,-592.62786754,0.00054794,120]
[312515825,1705938653886,-505.63902613,0.00054794,120]
[312515826,1705938653896,-174.09,0.00054794,120]
[312515827,1705938653905,-500.0,0.00054794,120]
[312515828,1705938653915,-500.0,0.00054794,120]
[312515829,1705938653924,-1000.0,0.00054794,50]
[312515830,1705938653933,-500.0,0.00054794,120]
[312515831,1705938653942,-530.61,0.00054794,120]
[312515832,1705938653951,-500.0,0.00054794,120]
[312515833,1705938653960,-215.46430664,0.00054794,120]
[312515834,1705938653970,-565.44214804,0.00054794,120]
[312515835,1705938653979,-500.0,0.00054794,120]
[312515836,1705938653988,-500.0,0.00054794,120]
[312515837,1705938653997,-500.0,0.00054794,120]
[312515838,1705938654007,-500.0,0.00054794,120]
[312515839,1705938654016,-500.0,0.00054794,120]
[312515840,1705938654025,-500.0,0.00054794,120]
[312515841,1705938654034,-155.60432878,0.00054794,120]
[312515842,1705938654043,-500.0,0.00054794,120]
[312515843,1705938654052,-500.0,0.00054794,120]
[312515844,1705938654061,-500.0,0.00054794,120]
[312515845,1705938654072,-500.0,0.00054794,120]
[312515846,1705938654081,-500.0,0.00054794,120]
[312515847,1705938654090,-500.0,0.00054794,120]
[312515848,1705938654100,-500.0,0.00054794,120]
[312515849,1705938654110,-665.59,0.00054794,120]
[312515850,1705938654120,-500.0,0.00054794,120]
[312515851,1705938654129,-500.0,0.00054794,120]
[312515852,1705938654138,-500.0,0.00054794,120]
[312515853,1705938654147,-500.0,0.00054794,120]
[312515854,1705938654156,-500.0,0.00054794,120]
[312515855,1705938654165,-500.0,0.00054794,120]
[312515856,1705938654174,-500.0,0.00054794,120]
[312515857,1705938654183,-934.63,0.00054794,120]
[312515858,1705938654193,-500.0,0.00054794,120]
[312515859,1705938654202,-500.0,0.00054794,120]
[312515860,1705938654212,-500.0,0.00054794,120]
[312515861,1705938654221,-500.0,0.00054794,120]
[312515862,1705938654230,-500.0,0.00054794,120]
[312515863,1705938654239,-500.0,0.00054794,120]
[312515864,1705938654248,-500.0,0.00054794,120]
[312515865,1705938654258,-500.0,0.00054794,120]
[312515866,1705938654267,-500.0,0.00054794,120]
[312515867,1705938654276,-874.52,0.00054794,120]
[312515868,1705938654286,-500.0,0.00054794,120]
[312515869,1705938654295,-500.0,0.00054794,120]
[312515870,1705938654304,-500.0,0.00054794,120]
[312515871,1705938654313,-500.0,0.00054794,120]
[312515872,1705938654325,-500.0,0.00054794,120]
[312515873,1705938654334,-500.0,0.00054794,60]
[312515874,1705938654345,-500.0,0.00054794,120]
[312515875,1705938654355,-500.0,0.00054794,120]
[312515876,1705938654363,-500.0,0.00054794,120]
[312515877,1705938654373,-500.0,0.00054794,120]
[312515878,1705938654383,-500.0,0.00054794,120]
[312515879,1705938654392,-500.0,0.00054794,120]
[312515880,1705938654401,-500.0,0.00054794,120]
[312515881,1705938654410,-906.69,0.00054794,120]
[312515882,1705938654420,-582.60651843,0.00054794,120]
[312515883,1705938654429,-500.0,0.00054794,120]
[312515884,1705938654438,-500.0,0.00054794,120]
[312515885,1705938654447,-500.0,0.00054794,120]
[312515886,1705938654457,-764.86,0.00054794,120]
[312515887,1705938654467,-500.0,0.00054794,120]
[312515888,1705938654476,-500.0,0.00054794,120]
[312515889,1705938654485,-500.0,0.00054794,120]
[312515890,1705938654494,-500.0,0.00054794,120]
[312515891,1705938654504,-854.84,0.00054794,120]
[312515892,1705938654512,-500.0,0.00054794,120]
[312515893,1705938654521,-527.73969193,0.00054794,120]
[312515894,1705938654531,-500.0,0.00054794,120]
[312515895,1705938654540,-500.0,0.00054794,120]
[312515896,1705938654549,-500.0,0.00054794,120]
[312515897,1705938654559,-500.0,0.00054794,120]
[312515898,1705938654570,-500.0,0.00054794,120]
[312515899,1705938654580,-500.0,0.00054794,120]
[312515900,1705938654589,-500.0,0.00054794,120]
[312515901,1705938654599,-1844.13,0.00054794,120]
[312515902,1705938654608,-500.0,0.00054794,120]
[312515903,1705938654617,-551.34,0.00054794,120]
[312515904,1705938654627,-500.0,0.00054794,120]
[312515905,1705938654636,-500.0,0.00054794,120]
[312515906,1705938654645,-500.0,0.00054794,120]
[312515907,1705938654654,-500.0,0.00054794,120]
[312515908,1705938654664,-500.0,0.00054794,120]
[312515909,1705938654673,-500.0,0.00054794,120]
[312515910,1705938654682,-500.0,0.00054794,120]
[312515911,1705938654691,-507.84554703,0.00054794,120]
[312515912,1705938654700,-500.0,0.00054794,120]
[312515913,1705938654709,-500.0,0.00054794,120]
[312515914,1705938654719,-1022.06,0.00054794,120]
[312515915,1705938654728,-500.0,0.00054794,120]
[312515916,1705938654737,-500.0,0.00054794,120]
[312515917,1705938654747,-500.0,0.00054794,120]
[312515918,1705938654756,-1000.0,0.00054794,120]
[312515919,1705938654765,-500.0,0.00054794,120]
[312515920,1705938654774,-2654.05,0.00054794,120]
[312515921,1705938654783,-500.0,0.00054794,120]
[312515922,1705938654793,-500.0,0.00054794,120]
[312515923,1705938654803,-500.0,0.00054794,120]
[312515924,1705938654812,-500.0,0.00054794,120]
[312515925,1705938654824,-500.0,0.00054794,120]
[312515926,1705938654833,-500.0,0.00054794,120]
[312515927,1705938654842,-500.0,0.00054794,120]
[312515928,1705938654851,-749.87,0.00054794,120]
[312515929,1705938654861,-605.27,0.00054794,120]
[312515930,1705938654870,-500.0,0.00054794,120]
[312515931,1705938654879,-577.64437861,0.00054794,120]
[312515932,1705938654889,-500.0,0.00054794,120]
[312515933,1705938654898,-567.42,0.00054794,120]
[312515934,1705938654907,-500.0,0.00054794,120]
[312515935,1705938654916,-500.0,0.00054794,120]
[312515936,1705938654925,-500.0,0.00054794,120]
[312515937,1705938654934,-504.14,0.00054794,120]
[312515938,1705938654943,-500.0,0.00054794,120]
[312515939,1705938654952,-500.0,0.00054794,2]
[312515940,1705938654962,-500.0,0.00054794,120]
[312515941,1705938654971,-500.0,0.00054794,120]
[312515942,1705938654981,-500.0,0.00054794,120]
[312515943,1705938654992,-500.0,0.00054794,120]
[312515944,1705938655002,-758.43,0.00054794,120]
[312515945,1705938655011,-500.0,0.00054794,120]
[312515946,1705938655020,-500.0,0.00054794,120]
[312515947,1705938655030,-1990.64,0.00054794,120]
[312515948,1705938655039,-500.0,0.00054794,120]
[312515949,1705938655048,-500.0,0.00054794,120]
[312515950,1705938655058,-620.84,0.00054794,120]
[312515951,1705938655070,-726.2,0.00054794,120]
[312515952,1705938655079,-1029.21,0.00054794,120]
[312515953,1705938655088,-500.0,0.00054794,120]
[312515954,1705938655097,-500.0,0.00054794,120]
[312515955,1705938655106,-548.22,0.00054794,120]
[312515956,1705938655117,-500.0,0.00054794,120]
[312515957,1705938655128,-508.32,0.00054794,120]
[312515958,1705938655138,-500.0,0.00054794,120]
[312515959,1705938655147,-986.07,0.00054794,120]
[312515960,1705938655157,-500.0,0.00054794,120]
[312515961,1705938655166,-1569.51,0.00054794,120]
[312515962,1705938655176,-500.0,0.00054794,120]
[312515963,1705938655186,-500.0,0.00054794,120]
[312515964,1705938655195,-5929.97,0.00054794,120]
[312515965,1705938655205,-500.0,0.00054794,120]
[312515966,1705938655215,-793.0,0.00054794,120]
[312515967,1705938655227,-527.67,0.00054794,120]
[312515968,1705938655237,-500.0,0.00054794,120]
[312515969,1705938655246,-500.0,0.00054794,120]
[312515970,1705938655256,-600.77,0.00054794,120]
[312515971,1705938655265,-501.19,0.00054794,120]
[312515972,1705938655274,-504.5,0.00054794,120]
[312515973,1705938655286,-521.54,0.00054794,120]
[312515974,1705938655297,-2160.01,0.00054794,120]
[312515975,1705938655307,-2721.11,0.00054794,120]
[312515976,1705938655317,-213.04935198,0.00054794,120]
[312515977,1705938655328,-500.0,0.00054794,120]
[312515978,1705938655338,-500.0,0.00054794,30]
[312515979,1705938655348,-500.0,0.00054794,120]
[312515980,1705938655358,-4092.43,0.00054794,120]
[312515981,1705938655368,-500.0,0.00054794,120]
[312515982,1705938655378,-500.0,0.00054794,120]
[312515983,1705938655390,-918.05,0.00054794,120]
[312515984,1705938655399,-509.92501422,0.00054794,120]
[312515985,1705938655408,-530.66,0.00054794,120]
[312515986,1705938655417,-500.0,0.00054794,120]
[312515987,1705938655427,-2733.94,0.00054794,120]
[312515988,1705938655436,-1276.51,0.00054794,120]
[312515989,1705938655445,-13128.11,0.00054794,120]
[312515990,1705938655454,-1718.48,0.00054794,120]
[312515991,1705938655464,-500.0,0.00054794,120]
[312515992,1705938655474,-500.0,0.00054794,120]
[312515993,1705938655484,-500.0,0.00054794,120]
[312515994,1705938655493,-500.0,0.00054794,120]
[312515995,1705938655502,-500.0,0.00054794,120]
[312515996,1705938655512,-500.0,0.00054794,120]
[312515997,1705938655521,-183.52016082,0.00054794,120]
[312515998,1705938655530,-779.18,0.00054794,120]
[312515999,1705938655539,-500.0,0.00054794,120]
[312516000,1705938655549,-500.0,0.00054794,120]
[312516001,1705938655559,-500.0,0.00054794,120]
[312516002,1705938655570,-500.0,0.00054794,120]
[312516003,1705938655580,-500.0,0.00054794,120]
[312516004,1705938655589,-500.0,0.00054794,120]
[312516005,1705938655598,-500.0,0.00054794,120]
[312516006,1705938655608,-500.0,0.00054794,120]
[312516007,1705938655618,-500.0,0.00054794,120]
[312516008,1705938655628,-1659.85,0.00054794,120]
[312516009,1705938655637,-500.0,0.00054794,120]
[312516010,1705938655646,-554.47,0.00054794,120]
[312516011,1705938655657,-500.0,0.00054794,120]
[312516012,1705938655667,-1163.66,0.00054794,120]
[312516013,1705938655676,-500.0,0.00054794,120]
[312516014,1705938655687,-731.36,0.00054794,120]
[312516015,1705938655698,-500.0,0.00054794,120]
[312516016,1705938655707,-500.0,0.00054794,120]
[312516017,1705938655716,-500.0,0.00054794,120]
[312516018,1705938655726,-925.02,0.00054794,120]
[312516019,1705938655737,-500.0,0.00054794,120]
[312516020,1705938655747,-500.0,0.00054794,120]
[312516021,1705938655757,-500.0,0.00054794,120]
[312516022,1705938655767,-688.33636236,0.00054794,120]
[312516023,1705938655776,-1921.79,0.00054794,120]
[312516024,1705938655785,-500.0,0.00054794,120]
[312516025,1705938655794,-500.0,0.00054794,120]
[312516026,1705938655804,-500.0,0.00054794,120]
[312516027,1705938655814,-500.0,0.00054794,120]
[312516028,1705938655824,-500.0,0.00054794,120]
[312516029,1705938655834,-500.0,0.00054794,120]
[312516030,1705938655844,-561.84688385,0.00054794,120]
[312516031,1705938655854,-500.0,0.00054794,120]
[312516032,1705938655863,-1484.95,0.00054794,120]
[312516033,1705938655873,-500.0,0.00054794,120]
[312516034,1705938655882,-763.14,0.00054794,120]
[312516035,1705938655892,-1320.58,0.00054794,120]
[312516036,1705938655901,-1445.19,0.00054794,120]
[312516037,1705938655911,-1606.23,0.00054794,120]
[312516038,1705938655920,-500.0,0.00054794,120]
[312516039,1705938655929,-500.0,0.00054794,120]
[312516040,1705938655939,-1314.99,0.00054794,120]
[312516041,1705938655949,-500.0,0.00054794,120]
[312516042,1705938655959,-1021.34,0.00054794,120]
[312516043,1705938655969,-500.0,0.00054794,120]
[312516044,1705938655978,-500.0,0.00054794,120]
[312516045,1705938655987,-500.0,0.00054794,120]
[312516046,1705938655997,-500.0,0.00054794,120]
[312516047,1705938656006,-666.0,0.00054794,120]
[312516048,1705938656016,-500.0,0.00054794,120]
[312516049,1705938656026,-774.91,0.00054794,120]
[312516050,1705938656035,-500.0,0.00054794,120]
[312516051,1705938656044,-500.0,0.00054794,120]
[312516052,1705938656054,-500.0,0.00054794,120]
[312516053,1705938656063,-500.0,0.00054794,120]
[312516054,1705938656074,-500.0,0.00054794,120]
[312516055,1705938656083,-500.0,0.00054794,120]
[312516056,1705938656093,-500.0,0.00054794,120]
[312516057,1705938656103,-500.0,0.00054794,120]
[312516058,1705938656112,-500.0,0.00054794,120]
[312516059,1705938656121,-1610.14,0.00054794,120]
[312516060,1705938656131,-594.86,0.00054794,120]
[312516061,1705938656140,-500.0,0.00054794,120]
[312516062,1705938656150,-870.31,0.00054794,120]
[312516063,1705938656159,-500.0,0.00054794,120]
[312516064,1705938656168,-500.0,0.00054794,120]
[312516065,1705938656177,-500.0,0.00054794,120]
[312516066,1705938656187,-662.61,0.00054794,120]
[312516067,1705938656196,-656.47,0.00054794,120]
[312516068,1705938656205,-1710.17,0.00054794,120]
[312516069,1705938656215,-942.4,0.00054794,120]
[312516070,1705938656224,-500.0,0.00054794,120]
[312516071,1705938656233,-500.0,0.00054794,120]
[312516072,1705938656243,-500.0,0.00054794,120]
[312516073,1705938656253,-7123.7,0.00054794,5]
[312516074,1705938656262,-500.0,0.00054794,120]
[312516075,1705938656271,-549.25,0.00054794,2]
[312516076,1705938656280,-500.0,0.00054794,120]
[312516077,1705938656290,-500.0,0.00054794,120]
[312516078,1705938656299,-500.0,0.00054794,120]
[312516079,1705938656308,-1312.71,0.00054794,120]
[312516080,1705938656318,-830.01,0.00054794,120]
[312516081,1705938656328,-504.01576502,0.00054794,120]
[312516082,1705938656338,-736.2,0.00054794,120]
[312516083,1705938656348,-500.0,0.00054794,120]
[312516084,1705938656357,-500.0,0.00054794,120]
[312516085,1705938656367,-787.53,0.00054794,120]
[312516086,1705938656378,-914.41,0.00054794,120]
[312516087,1705938656389,-3631.09,0.00054794,120]
[312516088,1705938656399,-500.0,0.00054794,120]
[312516089,1705938656408,-1367.29,0.00054794,120]
[312516090,1705938656418,-500.0,0.00054794,120]
[312516091,1705938656428,-500.0,0.00054794,120]
[312516092,1705938656437,-500.0,0.00054794,120]
[312516093,1705938656446,-522.42886909,0.00054794,120]
[312516094,1705938656456,-318.6990999,0.00054794,120]
[312516095,1705938656466,-1000.0,0.00054794,2]
[312516096,1705938656476,-500.0,0.00054794,120]
[312516097,1705938656486,-516.16988921,0.00054794,120]
[312516098,1705938656495,-500.0,0.00054794,120]
[312516099,1705938656505,-500.0,0.00054794,120]
[312516100,1705938656515,-500.0,0.00054794,120]
[312516101,1705938656524,-4448.8,0.00054794,120]
[312516102,1705938656534,-500.0,0.00054794,120]
[312516103,1705938656544,-500.0,0.00054794,120]
[312516104,1705938656554,-500.0,0.00054794,120]
[312516105,1705938656564,-720.74,0.00054794,120]
[312516106,1705938656574,-500.0,0.00054794,120]
[312516107,1705938656584,-500.0,0.00054794,120]
[312516108,1705938656593,-1210.24,0.00054794,120]
[312516109,1705938656603,-5803.54,0.00054794,120]
[312516110,1705938656613,-500.0,0.00054794,120]
[312516111,1705938656622,-500.0,0.00054794,120]
[312516112,1705938656632,-1816.75,0.00054794,120]
[312516113,1705938656642,-500.0,0.00054794,120]
[312516114,1705938656651,-500.0,0.00054794,120]
[312516115,1705938656661,-500.0,0.00054794,120]
[312516116,1705938656671,-500.0,0.00054794,120]
[312516117,1705938656680,-192.91072102,0.00054794,120]
[312516118,1705938656690,-500.0,0.00054794,120]
[312516119,1705938656700,-500.0,0.00054794,120]
[312516120,1705938656710,-500.0,0.00054794,120]
[312516121,1705938656719,-500.0,0.00054794,120]
[312516122,1705938656730,-500.0,0.00054794,120]
[312516123,1705938656739,-593.58,0.00054794,120]
[312516124,1705938656750,-858.0,0.00054794,120]
[312516125,1705938656759,-1596.58,0.00054794,120]
[312516126,1705938656769,-500.0,0.00054794,120]
[312516127,1705938656779,-500.0,0.00054794,120]
[312516128,1705938656789,-1110.34,0.00054794,120]
[312516129,1705938656799,-778.69,0.00054794,120]
[312516130,1705938656809,-500.0,0.00054794,120]
[312516131,1705938656819,-500.0,0.00054794,120]
[312516132,1705938656830,-500.0,0.00054794,120]
[312516133,1705938656840,-500.0,0.00054794,120]
[312516134,1705938656850,-538.8,0.00054794,120]
[312516135,1705938656860,-820.97,0.00054794,120]
[312516136,1705938656870,-500.0,0.00054794,120]
[312516137,1705938656881,-500.0,0.00054794,120]
[312516138,1705938656891,-782.46,0.00054794,120]
[312516139,1705938656901,-868.92,0.00054794,120]
[312516140,1705938656911,-1309.31,0.00054794,120]
[312516141,1705938656921,-500.0,0.00054794,120]
[312516142,1705938656930,-1218.8,0.00054794,120]
[312516143,1705938656941,-500.0,0.00054794,120]
[312516144,1705938656951,-500.0,0.00054794,120]
[312516145,1705938656961,-500.0,0.00054794,120]
[312516146,1705938656970,-500.0,0.00054794,120]
[312516147,1705938656980,-2230.05,0.00054794,120]
[312516148,1705938656990,-1045.6,0.00054794,120]
[312516149,1705938656999,-1004.98,0.00054794,120]
[312516150,1705938657009,-500.0,0.00054794,120]
[312516151,1705938657018,-500.0,0.00054794,120]
[312516152,1705938657027,-500.0,0.00054794,120]
[312516153,1705938657037,-1495.9,0.00054794,120]
[312516154,1705938657046,-500.0,0.00054794,120]
[312516155,1705938657056,-500.0,0.00054794,120]
[312516156,1705938657066,-500.0,0.00054794,120]
[312516157,1705938657076,-536.6,0.00054794,10]
[312516158,1705938657085,-500.0,0.00054794,120]
[312516159,1705938657095,-500.0,0.00054794,120]
[312516160,1705938657106,-500.0,0.00054794,120]
[312516161,1705938657116,-500.0,0.00054794,120]
[312516162,1705938657126,-500.0,0.00054794,120]
[312516163,1705938657135,-506.62643335,0.00054794,120]
[312516164,1705938657146,-500.0,0.00054794,120]
[312516165,1705938657156,-1767.44,0.00054794,120]
[312516166,1705938657166,-500.0,0.00054794,120]
[312516167,1705938657177,-811.75,0.00054794,120]
[312516168,1705938657188,-846.06,0.00054794,120]
[312516169,1705938657199,-500.0,0.00054794,120]
[312516170,1705938657430,-786.12,0.00054794,120]
[312516171,1705938657439,-326.56755491,0.00054794,120]
[312516172,1705938657452,-744.84,0.00054794,120]
[312516173,1705938657463,-500.0,0.00054794,120]
[312516174,1705938657473,-1125.23424195,0.00054794,120]
[312516175,1705938657482,-500.0,0.00054794,120]
[312516176,1705938657491,-500.0,0.00054794,120]
[312516177,1705938657501,-500.0,0.00054794,120]
[312516178,1705938657510,-500.0,0.00054794,120]
[312516179,1705938657520,-500.0,0.00054794,120]
[312516180,1705938657529,-500.0,0.00054794,120]
[312516181,1705938657539,-500.0,0.00054794,120]
[312516182,1705938657550,-500.0,0.00054794,120]
[312516183,1705938657560,-737.12,0.00054794,120]
[312516184,1705938657572,-500.0,0.00054794,7]
[312516185,1705938657582,-500.0,0.00054794,120]
[312516186,1705938657592,-634.32,0.00054794,120]
[312516187,1705938657601,-500.0,0.00054794,120]
[312516188,1705938657611,-500.0,0.00054794,120]
[312516189,1705938657621,-561.7459468,0.00054794,120]
[312516190,1705938657632,-1224.99,0.00054794,120]
[312516191,1705938657641,-500.0,0.00054794,120]
[312516192,1705938657651,-1441.09,0.00054794,120]
[312516193,1705938657661,-500.0,0.00054794,120]
[312516194,1705938657670,-1344.91,0.00054794,120]
[312516195,1705938657680,-500.0,0.00054794,120]
[312516196,1705938657689,-500.0,0.00054794,120]
[312516197,1705938657699,-1013.27,0.00054794,120]
[312516198,1705938657709,-500.0,0.00054794,120]
[312516199,1705938657718,-813.38,0.00054794,120]
[312516200,1705938657728,-500.0,0.00054794,120]
[312516201,1705938657739,-803.15,0.00054794,120]
[312516202,1705938657748,-500.0,0.00054794,120]
[312516203,1705938657757,-500.0,0.00054794,120]
[312516204,1705938657767,-500.0,0.00054794,120]
[312516205,1705938657777,-500.0,0.00054794,120]
[312516206,1705938657786,-500.0,0.00054794,120]
[312516207,1705938657796,-500.0,0.00054794,120]
[312516208,1705938657806,-500.0,0.00054794,120]
[312516209,1705938657817,-5874.3,0.00054794,120]
[312516210,1705938657827,-982.11,0.00054794,120]
[312516211,1705938657837,-500.0,0.00054794,120]
[312516212,1705938657848,-1126.05,0.00054794,120]
[312516213,1705938657857,-500.0,0.00054794,120]
[312516214,1705938657868,-500.0,0.00054794,120]
[312516215,1705938657878,-761.5,0.00054794,120]
[312516216,1705938657887,-500.0,0.00054794,120]
[312516217,1705938657897,-500.0,0.00054794,120]
[312516218,1705938657907,-965.62,0.00054794,120]
[312516219,1705938657916,-500.0,0.00054794,120]
[312516220,1705938657926,-500.0,0.00054794,120]
[312516221,1705938657936,-500.0,0.00054794,120]
[312516222,1705938657945,-274.52024958,0.00054794,120]
[312516223,1705938657956,-500.0,0.00054794,120]
[312516224,1705938657965,-500.0,0.00054794,120]
[312516225,1705938657975,-851.11,0.00054794,120]
[312516226,1705938657984,-500.0,0.00054794,120]
[312516227,1705938657994,-500.0,0.00054794,120]
[312516228,1705938658006,-655.88,0.00054794,120]
[312516229,1705938658016,-890.36,0.00054794,120]
[312516230,1705938658026,-500.0,0.00054794,120]
[312516231,1705938658036,-583.49,0.00054794,120]
[312516232,1705938658046,-500.0,0.00054794,120]
[312516233,1705938658056,-500.0,0.00054794,14]
[312516234,1705938658065,-500.0,0.00054794,120]
[312516235,1705938658075,-932.96,0.00054794,120]
[312516236,1705938658085,-1350.67,0.00054794,120]
[312516237,1705938658094,-606.81,0.00054794,120]
[312516238,1705938658104,-507.43237843,0.00054794,120]
[312516239,1705938658114,-500.0,0.00054794,120]
[312516240,1705938658124,-671.0,0.00054794,120]
[312516241,1705938658134,-500.0,0.00054794,120]
[312516242,1705938658144,-801.02,0.00054794,120]
[312516243,1705938658153,-500.0,0.00054794,120]
[312516244,1705938658163,-5134.03,0.00054794,120]
[312516245,1705938658172,-500.0,0.00054794,120]
[312516246,1705938658182,-849.31,0.00054794,120]
[312516247,1705938658191,-711.49,0.00054794,120]
[312516248,1705938658200,-1137.44,0.00054794,120]
[312516249,1705938658210,-500.0,0.00054794,120]
[312516250,1705938658220,-500.0,0.00054794,120]
[312516251,1705938658230,-500.0,0.00054794,120]
[312516252,1705938658240,-500.0,0.00054794,120]
[312516253,1705938658250,-473.21243364,0.00054794,120]
[312516254,1705938658259,-500.0,0.00054794,120]
[312516255,1705938658268,-987.82,0.00054794,120]
[312516256,1705938658278,-672.21,0.00054794,120]
[312516257,1705938658287,-500.0,0.00054794,120]
[312516258,1705938658296,-2284.4,0.00054794,120]
[312516259,1705938658306,-500.0,0.00054794,120]
[312516260,1705938658315,-500.0,0.00054794,120]
[312516261,1705938658325,-500.0,0.00054794,120]
[312516262,1705938658335,-500.0,0.00054794,120]
[312516263,1705938658344,-500.0,0.00054794,120]
[312516264,1705938658353,-500.0,0.00054794,120]
[312516265,1705938658362,-500.0,0.00054794,120]
[312516266,1705938658373,-115.91153856,0.00054794,120]
[312516267,1705938658420,-256.05027384,0.00054794,120]
[312516268,1705938658432,-128.0381876,0.00054794,120]
[312516269,1705938658442,-528.0911982,0.00054794,45]
[312516270,1705938658453,-1197.69185056,0.00054794,45]
[312516271,1705938658466,-1469.77088822,0.00054794,45]
[312516272,1705938658479,-402.91738099,0.00054794,45]
[312516273,1705938658489,-237.46164872,0.00054794,120]
[312516274,1705938658505,-1416.10835128,0.00054794,120]
[312516275,1705938658515,-910.84,0.00054794,120]
[312516276,1705938658524,-500.0,0.00054794,120]
[312516277,1705938658533,-628.47,0.00054794,120]
[312516278,1705938658543,-500.0,0.00054794,120]
[312516279,1705938658553,-1434.73,0.00054794,120]
[312516280,1705938658562,-639.52,0.00054794,120]
[312516281,1705938658572,-500.0,0.00054794,120]
[312516282,1705938658582,-500.0,0.00054794,120]
[312516283,1705938658591,-591.06,0.00054794,120]
[312516284,1705938658600,-500.0,0.00054794,120]
[312516285,1705938658610,-676.37,0.00054794,120]
[312516286,1705938658619,-500.0,0.00054794,120]
[312516287,1705938658629,-500.0,0.00054794,120]
[312516288,1705938658638,-517.64715807,0.00054794,120]
[312516289,1705938658647,-750.24,0.00054794,120]
[312516290,1705938658657,-500.0,0.00054794,120]
[312516291,1705938658666,-854.37,0.00054794,120]
[312516292,1705938658675,-539.98,0.00054794,120]
[312516293,1705938658684,-500.0,0.00054794,120]
[312516294,1705938658694,-1081.18194818,0.00054794,120]
[312516295,1705938658703,-687.84,0.00054794,2]
[312516296,1705938658713,-1921.31995247,0.00054794,120]
[312516297,1705938658729,-901.740016,0.00054794,120]
[312516298,1705938658741,-6246.50973598,0.00054794,120]
[312516299,1705938658752,-696.65702926,0.00054794,120]
[312516300,1705938658765,-668.90836217,0.00054794,120]
[312516301,1705938658828,-774.0,0.00039183,5]
[312516302,1705938658838,-133.91825439,0.00054794,120]
[312516303,1705938659198,-371.24785999,0.00031722,2]
[312516304,1705938661011,-0.34895981,0.00031722,2]
[312516305,1705938661026,-477.47010003,0.00031722,2]
[312516306,1705938661038,-116.22989997,0.00054794,120]
[312516307,1705938661051,-904.53314088,0.00054794,120]
[312516308,1705938661065,-3983.70360888,0.00054794,120]
[312516309,1705938661078,-1260.54,0.00054794,120]
[312516310,1705938661089,-500.0,0.00054794,120]
[312516311,1705938661105,-500.0,0.00054794,120]
[312516312,1705938661117,-866.23,0.00054794,120]
[312516313,1705938661128,-990.92,0.00054794,120]
[312516314,1705938661141,-751.46,0.00054794,120]
[312516315,1705938661152,-259.66024263,0.00054794,120]
[312516316,1705938661163,-500.0,0.00054794,120]
[312516317,1705938661174,-1056.35,0.00054794,120]
[312516318,1705938661186,-500.0,0.00054794,120]
[312516319,1705938661198,-500.0,0.00054794,120]
[312516320,1705938661210,-500.0,0.00054794,120]
[312516321,1705938661221,-912.0,0.00054794,120]